bitfinex-derivatives/quotes_BNBF0:USTF0_20241230
["timestamp","ask_amount","ask_price","bid_price","bid_amount"]
[1735560915934,0.26298443,700.41,699.01,1.05585087]
[1735560916133,0.26298443,700.4,699.01,1.05585087]
[1735560916332,0.26298443,700.39,699.01,1.05585087]
[1735560916530,0.26294464,700.38,699.01,1.05585087]
[1735560916730,0.28551034,700.5,699.01,1.05585087]
[1735560916929,0.26291761,700.49,699.01,1.05585087]
[1735560917931,0.26291761,700.49,699.3,1.05585087]
[1735560918937,0.26291761,700.49,699.28,1.05585087]
[1735560919136,0.26292542,700.48,699.28,1.05585087]
[1735560919436,0.26292542,700.47,699.28,1.05585087]
[1735560919628,0.26292542,700.46,699.28,1.05585087]
[1735560919833,0.26292542,700.45,699.28,1.05585087]
[1735560920033,0.26292542,700.44,699.28,1.05585087]
[1735560920336,0.26291972,700.43,699.24,1.05585087]
[1735560920636,0.28551034,700.5,699.24,1.05585087]
[1735560920834,0.26290762,700.49,699.24,1.05585087]
[1735560921336,0.26290762,700.49,699.28,1.05585087]
[1735560921736,0.28552257,700.47,699.28,1.05585087]
[1735560921937,0.26292782,700.46,699.28,1.05585087]
[1735560922138,0.26292782,700.46,693.1,8.51372786]
[1735560922139,0.28553073,700.45,699.24,1.05585087]
[1735560922336,0.26292782,700.44,699.24,1.05585087]
[1735560922533,0.28553073,700.45,699.24,1.05585087]
[1735560923239,0.28553073,700.45,698.87,2.15569553]
[1735560923240,0.28553073,700.45,699.22,1.05585087]
[1735560924140,0.26292436,700.44,699.22,1.05585087]
[1735560924342,0.28553073,700.45,699.23,1.05585087]
[1735560925434,0.28553073,700.45,698.67,2.15569553]
[1735560925435,0.28553073,700.45,699.19,1.05585087]
[1735560926834,0.28553073,700.45,698.88,1.26702104]
[1735560926835,0.28553073,700.45,699.21,1.05585087]
[1735560927942,0.28553073,700.45,698.98,1.05585087]
[1735560928839,0.28553073,700.45,698.95,1.05585087]
[1735560929942,0.28553073,700.45,698.99,1.05585087]
[1735560930840,0.28553073,700.45,698.98,1.05585087]
[1735560931642,0.28553073,700.45,699.01,1.05585087]
[1735560932640,0.28553073,700.45,699.03,1.05585087]
[1735560933743,0.28553073,700.45,699.09,1.05585087]
[1735560934539,0.28553073,700.45,698.17,2.15569553]
[1735560934540,0.28553073,700.45,699.11,1.05585087]
[1735560935439,0.28553073,700.45,698.2,2.15569553]
[1735560935440,0.28553073,700.45,699.13,1.05585087]
[1735560936747,0.28553073,700.45,699.48,1.06629451]
[1735560937342,0.28553073,700.45,699.67,1.06629451]
[1735560938249,0.28553073,700.45,699.66,1.06629451]
[1735560938851,0.28553073,700.45,699.65,1.06629451]
[1735560939951,0.28553073,700.45,699.72,1.06629451]
[1735560940951,0.28553073,700.45,699.1,2.15569553]
[1735560940952,0.28553073,700.45,699.74,1.06629451]
[1735560942853,0.28553073,700.45,699.72,1.06629451]
[1735560944654,0.28553073,700.45,699.68,1.06629451]
[1735560945451,0.28553073,700.45,699.66,1.06629451]
[1735560946256,0.28553073,700.45,699.65,1.06629451]
[1735560947352,0.28553073,700.45,699.64,1.06629451]
[1735560947950,0.28553073,700.45,699.67,1.06629451]
[1735560949150,0.28553073,700.45,699.69,1.06629451]
[1735560950055,0.28553073,700.45,699.71,1.06629451]
[1735560950956,0.28553073,700.45,699.69,1.06629451]
[1735560951856,0.28553073,700.45,699.7,1.06629451]
[1735560952757,0.28553073,700.45,699.57,1.06629451]
[1735560953753,0.28553073,700.45,699.7,1.06629451]
[1735560954950,0.28553073,700.45,699.74,1.06629451]
[1735560956457,0.28553073,700.45,699.78,1.06629451]
[1735560957259,0.28553073,700.45,699.76,1.06629451]
[1735560959961,0.28553073,700.45,699.78,1.06629451]
[1735560960359,0.28553073,700.45,699.82,1.06629451]
[1735560961564,0.28553073,700.45,699.12,2.15569553]
[1735560961565,0.28553073,700.45,699.83,1.06629451]
[1735560962559,0.28553073,700.45,699.84,1.06629451]
[1735560963564,0.28553073,700.45,699.93,1.06629451]
[1735560964564,0.28553073,700.45,699.95,1.06629451]
[1735560965560,0.28553073,700.45,699.68,1.06629451]
[1735560969464,0.28553073,700.45,699.69,1.06629451]
[1735560970665,0.28553073,700.45,699.72,1.06629451]
[1735560971970,0.28553073,700.45,699.85,1.06629451]
[1735560972967,0.28553073,700.45,699.83,1.06629451]
[1735560973867,0.28553073,700.45,698.94,2.15569553]
[1735560973868,0.28553073,700.45,699.8,1.06629451]
[1735560974866,0.28553073,700.45,699.81,1.06629451]
[1735560975974,0.28553073,700.45,699.82,1.06629451]
[1735560977669,0.28553073,700.45,699.85,1.06629451]
[1735560978673,0.28553073,700.45,699.94,1.06629451]
[1735560979675,0.28553073,700.45,699.66,1.05585087]
[1735560979676,0.28553073,700.45,699.95,1.06629451]
[1735560980476,0.28553073,700.45,699.99,1.06629451]
[1735560981669,0.28553073,700.45,700.01,1.06629451]
[1735560982577,0.28553073,700.45,700.02,1.06629451]
[1735560983279,0.28553073,700.45,699.94,1.06629451]
[1735560984179,0.28553073,700.45,699.92,1.06629451]
[1735560985482,0.28553073,700.45,699.85,1.06629451]
[1735560986180,0.28518465,701.3,699.85,1.06629451]
[1735560986380,0.26286022,701.29,699.85,1.06629451]
[1735560986582,0.26286022,701.28,699.85,1.06629451]
[1735560986781,1.06919557,701.17,699.86,1.06629451]
[1735560986980,0.26285855,701.16,699.86,1.06629451]
[1735560987881,0.26285855,701.15,699.74,1.06629451]
[1735560988076,0.26285855,701.14,699.74,1.06629451]
[1735560988277,0.26285855,701.13,699.74,1.06629451]
[1735560988479,0.26285855,701.12,699.74,1.06629451]
[1735560988677,0.26285855,701.11,699.74,1.06629451]
[1735560988880,0.26285855,701.1,699.74,1.06629451]
[1735560989084,0.28518465,701.3,699.48,1.05585087]
[1735560989085,0.26285855,701.09,699.73,1.06629451]
[1735560989280,0.26285855,701.08,699.73,1.06629451]
[1735560989475,0.26285855,701.07,699.73,1.06629451]
[1735560989678,0.26285855,701.06,699.73,1.06629451]
[1735560989882,0.26285855,701.05,699.73,1.06629451]
[1735560990084,0.26285855,701.04,699.71,1.06629451]
[1735560990382,0.26285855,701.03,699.71,1.06629451]
[1735560990683,0.26285855,701.02,699.71,1.06629451]
[1735560990876,0.26285855,701.01,699.71,1.06629451]
[1735560991078,0.26285855,701.0,699.71,1.06629451]
[1735560991281,0.26285855,701.0,699.0,2.15569553]
[1735560991282,0.26285855,700.99,699.7,1.06629451]
[1735560991482,0.26285855,700.98,699.7,1.06629451]
[1735560991680,0.26285855,700.97,699.7,1.06629451]
[1735560991883,0.26285855,700.96,699.7,1.06629451]
[1735560992082,0.28518465,701.3,699.1,1.26702104]
[1735560992083,0.26285855,700.95,699.69,1.06629451]
[1735560992287,0.26285855,701.29,699.69,1.06629451]
[1735560992584,0.26285855,701.28,699.69,1.06629451]
[1735560992779,0.26285855,701.27,699.69,1.06629451]
[1735560992980,0.26290644,701.26,699.69,1.06629451]
[1735560993181,0.26290644,701.25,699.69,1.06629451]
[1735560993383,0.26290644,701.24,699.57,1.06629451]
[1735560993586,0.26290644,701.23,699.57,1.06629451]
[1735560993787,0.26290644,701.22,699.57,1.06629451]
[1735560993979,0.26290644,701.21,699.57,1.06629451]
[1735560994287,0.26290644,701.2,699.56,1.06629451]
[1735560994489,0.26290644,701.19,699.56,1.06629451]
[1735560994688,0.26290644,701.18,699.56,1.06629451]
[1735560994981,0.26290788,701.17,699.56,1.06629451]
[1735560995186,0.26290788,701.16,699.56,1.06629451]
[1735560995486,0.26290788,701.15,699.53,1.06629451]
[1735560995786,0.26290788,701.14,699.53,1.06629451]
[1735560995986,0.26290788,701.13,699.53,1.06629451]
[1735560996183,0.26290788,701.12,699.53,1.06629451]
[1735560996380,0.26290788,701.11,699.53,1.06629451]
[1735560996581,0.26290788,701.1,699.56,1.06629451]
[1735560996785,0.26290788,701.09,699.56,1.06629451]
[1735560996986,0.26290788,701.08,699.56,1.06629451]
[1735560997188,0.26290788,701.07,699.56,1.06629451]
[1735560997383,0.28518465,701.3,699.48,1.06629451]
[1735560997584,0.26290508,701.29,699.48,1.06629451]
[1735560997881,0.26290508,701.28,699.48,1.06629451]
[1735560998085,0.26290508,701.27,699.48,1.06629451]
[1735560998281,0.26290508,701.26,699.48,1.06629451]
[1735560998484,0.26290508,701.25,699.46,1.06629451]
[1735560998681,0.26290508,701.24,699.46,1.06629451]
[1735560998885,0.26290508,701.23,699.46,1.06629451]
[1735560999085,0.26290508,701.22,699.46,1.06629451]
[1735560999287,0.26290508,701.21,699.46,1.06629451]
[1735560999487,0.26290508,701.2,699.46,1.06629451]
[1735560999689,0.26290508,701.19,699.43,1.06629451]
[1735560999887,0.26290508,701.18,699.43,1.06629451]
[1735561000086,0.26290864,701.17,699.43,1.06629451]
[1735561000391,0.26290864,701.16,699.43,1.06629451]
[1735561000592,0.28518465,701.3,699.42,1.06629451]
[1735561000793,0.26290949,701.29,699.42,1.06629451]
[1735561000986,0.26290949,701.28,699.42,1.06629451]
[1735561001193,0.26290949,701.27,699.42,1.06629451]
[1735561001493,0.26290949,701.26,699.39,1.06629451]
[1735561001690,0.26290949,701.25,699.39,1.06629451]
[1735561001885,0.26290949,701.24,699.39,1.06629451]
[1735561002091,0.26290949,701.23,699.39,1.06629451]
[1735561002288,0.26290949,701.22,699.39,1.06629451]
[1735561002485,0.26290949,701.21,699.39,1.06629451]
[1735561002688,0.26290949,701.21,698.67,2.15569553]
[1735561002689,0.26290949,701.2,699.36,1.06629451]
[1735561002892,0.26290949,701.19,699.36,1.06629451]
[1735561003192,0.26290949,701.18,699.36,1.06629451]
[1735561003394,0.26290949,701.17,699.36,1.06629451]
[1735561003693,0.26290949,701.16,699.36,1.06629451]
[1735561003886,0.26290949,701.15,699.36,1.06629451]
[1735561004086,0.26290949,701.14,699.21,1.06629451]
[1735561004291,0.28518465,701.3,699.21,1.06629451]
[1735561004292,0.26290949,701.13,699.21,1.06629451]
[1735561004487,0.26290949,701.12,699.21,1.06629451]
[1735561004793,0.26290949,701.11,699.21,1.06629451]
[1735561004987,0.26290949,701.1,699.21,1.06629451]
[1735561005191,0.26295215,701.09,699.21,1.06629451]
[1735561005496,0.26295215,701.08,699.23,1.06629451]
[1735561005789,0.26295215,701.07,699.23,1.06629451]
[1735561005993,0.26295215,701.06,699.23,1.06629451]
[1735561006194,0.26295215,701.05,699.23,1.06629451]
[1735561006393,0.26295215,701.04,699.23,1.06629451]
[1735561006595,0.26295215,701.03,699.21,1.06629451]
[1735561006787,0.26295215,701.02,699.21,1.06629451]
[1735561006990,0.28518465,701.3,699.21,1.06629451]
[1735561006991,0.26295215,701.01,699.21,1.06629451]
[1735561007194,0.26295215,701.0,699.21,1.06629451]
[1735561007390,0.26295215,700.99,699.21,1.06629451]
[1735561007589,0.26295215,700.98,699.21,1.06629451]
[1735561007790,0.26295215,700.97,699.21,1.06629451]
[1735561008095,0.26295215,700.96,699.21,1.06629451]
[1735561008295,0.26295215,700.95,699.21,1.06629451]
[1735561008595,0.28518465,701.3,699.2,1.06629451]
[1735561008596,0.26295215,700.94,699.2,1.06629451]
[1735561008796,0.26295215,700.93,699.2,1.06629451]
[1735561008996,0.26295215,700.92,699.2,1.06629451]
[1735561009192,0.26295215,700.91,699.2,1.06629451]
[1735561009390,0.26295215,700.9,699.2,1.06629451]
[1735561009594,0.26295215,700.89,699.2,1.06629451]
[1735561009794,0.28518465,701.3,699.2,1.06629451]
[1735561009795,0.26295215,700.88,699.2,1.06629451]
[1735561009991,0.26295215,700.87,699.2,1.06629451]
[1735561010193,0.26295215,700.86,699.2,1.06629451]
[1735561010391,0.26295215,700.85,699.19,1.06629451]
[1735561010595,0.26297056,701.29,699.19,1.06629451]
[1735561010795,0.26297056,701.28,699.19,1.06629451]
[1735561010997,0.26297056,701.27,699.19,1.06629451]
[1735561011198,0.26297056,701.26,699.16,1.06629451]
[1735561011399,0.26297056,701.25,699.16,1.06629451]
[1735561011699,0.26297056,701.24,699.16,1.06629451]
[1735561011898,0.28518465,701.3,699.16,1.06629451]
[1735561011899,0.26297056,701.23,699.16,1.06629451]
[1735561012194,0.26297056,701.22,699.17,1.06629451]
[1735561012395,0.26297056,701.21,699.17,1.06629451]
[1735561012597,0.26297056,701.2,699.17,1.06629451]
[1735561012799,0.26297056,701.19,699.17,1.06629451]
[1735561013000,0.26297056,701.18,699.17,1.06629451]
[1735561013200,0.26296883,701.17,699.17,1.06629451]
[1735561013402,0.26296883,701.16,699.17,1.06629451]
[1735561013596,0.26296883,701.15,699.17,1.06629451]
[1735561013802,0.26296883,701.14,699.17,1.06629451]
[1735561014100,0.26296883,701.13,699.17,1.06629451]
[1735561014400,0.26296883,701.12,699.17,1.06629451]
[1735561014595,0.26296883,701.11,699.17,1.06629451]
[1735561014800,0.26296883,701.1,699.18,1.06629451]
[1735561014997,0.28518465,701.3,699.18,1.06629451]
[1735561014998,0.26296883,701.09,699.18,1.06629451]
[1735561015195,0.26296883,701.08,699.18,1.06629451]
[1735561015499,0.28518465,701.3,699.18,1.06629451]
[1735561015500,0.26296883,701.07,699.18,1.06629451]
[1735561015697,0.26296928,701.06,699.18,1.06629451]
[1735561015895,0.26296928,701.05,699.18,1.06629451]
[1735561016093,0.26296928,701.04,699.18,1.06629451]
[1735561016403,0.26296719,701.03,699.18,1.06629451]
[1735561016598,0.26296719,701.03,698.53,2.15569553]
[1735561016599,0.26296719,701.02,699.23,1.06629451]
[1735561016798,0.26296719,701.01,699.23,1.06629451]
[1735561016998,1.06919557,701.24,699.23,1.06629451]
[1735561016999,0.26296719,701.0,699.23,1.06629451]
[1735561017199,0.26296719,700.99,699.23,1.06629451]
[1735561017395,0.26296719,700.98,699.23,1.06629451]
[1735561017601,0.26296719,700.97,699.21,1.06629451]
[1735561017800,0.26296719,700.96,699.21,1.06629451]
[1735561017996,0.26296719,700.95,699.21,1.06629451]
[1735561018198,0.26296719,700.94,699.21,1.06629451]
[1735561018401,0.26296719,700.93,699.21,1.06629451]
[1735561018697,0.26296719,700.92,699.26,1.06629451]
[1735561018902,0.26296719,700.91,699.26,1.06629451]
[1735561019097,0.26296454,700.9,699.26,1.06629451]
[1735561019298,0.26296454,700.89,699.26,1.06629451]
[1735561019503,0.26296454,700.88,699.28,1.06629451]
[1735561019698,0.26296454,700.87,699.28,1.06629451]
[1735561019899,0.26296454,700.86,699.28,1.06629451]
[1735561020101,0.26296454,700.85,699.28,1.06629451]
[1735561020302,0.26296454,700.84,699.28,1.06629451]
[1735561020501,0.26296454,700.83,699.28,1.06629451]
[1735561020705,0.26296454,700.82,699.31,1.06629451]
[1735561020905,0.26296454,700.81,699.31,1.06629451]
[1735561021105,0.26296454,700.8,699.31,1.06629451]
[1735561021299,0.26296454,700.79,699.31,1.06629451]
[1735561021499,0.26296454,700.78,699.31,1.06629451]
[1735561021704,0.26296454,700.77,699.36,1.06629451]
[1735561021898,0.26296454,700.76,699.36,1.06629451]
[1735561022103,0.26296454,700.75,699.36,1.06629451]
[1735561022301,0.26296454,700.74,699.36,1.06629451]
[1735561022606,0.26296454,700.73,699.38,1.06629451]
[1735561022802,1.06919557,701.25,699.38,1.06629451]
[1735561023007,0.26295847,701.24,699.38,1.06629451]
[1735561023208,0.26295847,701.23,699.38,1.06629451]
[1735561023509,0.26295651,701.22,699.4,1.06629451]
[1735561023703,0.26295651,701.21,699.4,1.06629451]
[1735561024007,0.26295651,701.2,699.4,1.06629451]
[1735561024204,0.26295651,701.19,699.4,1.06629451]
[1735561024404,0.26295651,701.19,698.68,2.15569553]
[1735561024405,0.26295651,701.18,699.43,1.06629451]
[1735561024603,0.26295651,701.17,699.43,1.06629451]
[1735561024803,0.26295651,701.16,699.43,1.06629451]
[1735561025108,0.26295651,701.15,699.43,1.06629451]
[1735561025408,0.26295651,701.14,699.43,1.06629451]
[1735561025609,0.26295651,701.13,699.44,1.06629451]
[1735561025801,0.26295651,701.12,699.44,1.06629451]
[1735561026005,0.26295651,701.11,699.44,1.06629451]
[1735561026205,0.26295651,701.1,699.44,1.06629451]
[1735561026408,0.26295651,701.09,699.44,1.06629451]
[1735561026603,0.26295651,701.08,699.44,1.06629451]
[1735561026809,0.26295651,701.07,699.31,1.06629451]
[1735561027008,0.26295651,701.06,699.31,1.06629451]
[1735561027203,0.26295651,701.05,699.31,1.06629451]
[1735561027404,0.26295651,701.04,699.31,1.06629451]
[1735561027603,0.26295651,701.03,699.36,1.06629451]
[1735561027908,0.26295651,701.02,699.36,1.06629451]
[1735561028109,0.26288129,701.01,699.36,1.06629451]
[1735561028408,0.28518465,701.3,699.41,1.06629451]
[1735561028604,0.26288102,701.29,699.41,1.06629451]
[1735561029610,0.26288102,701.29,699.39,1.06629451]
[1735561030607,0.26288392,701.28,699.39,1.06629451]
[1735561030809,0.26288392,701.27,699.39,1.06629451]
[1735561031011,0.26288392,701.26,699.39,1.06629451]
[1735561031205,0.28518465,701.3,699.39,1.06629451]
[1735561031414,0.262884,701.29,699.39,1.06629451]
[1735561031613,0.262884,701.29,699.49,1.06629451]
[1735561032617,0.262884,701.29,699.46,1.06629451]
[1735561033415,0.26289962,701.28,699.46,1.06629451]
[1735561033615,0.28518465,701.3,699.44,1.06629451]
[1735561033616,0.26289962,701.27,699.44,1.06629451]
[1735561033816,0.26289962,701.26,699.44,1.06629451]
[1735561034114,0.26289962,701.25,699.44,1.06629451]
[1735561034314,0.26289962,701.24,699.44,1.06629451]
[1735561034512,0.26289962,701.23,699.44,1.06629451]
[1735561034715,0.26289962,701.22,699.44,1.06629451]
[1735561034917,0.26289962,701.21,699.44,1.06629451]
[1735561035118,0.26289962,701.2,699.44,1.06629451]
[1735561035319,0.26289962,701.19,699.44,1.06629451]
[1735561035514,0.26289962,701.18,699.43,1.06629451]
[1735561035711,0.26289962,701.17,699.43,1.06629451]
[1735561035917,0.26288994,701.16,699.43,1.06629451]
[1735561036116,0.26288994,701.15,699.43,1.06629451]
[1735561036324,0.26288994,701.14,699.43,1.06629451]
[1735561036523,0.26288994,701.13,699.54,1.06629451]
[1735561036821,0.26288994,701.12,699.54,1.06629451]
[1735561037022,0.26288994,701.11,699.54,1.06629451]
[1735561037217,0.28527007,701.09,699.54,1.06629451]
[1735561037419,0.26288994,701.08,699.54,1.06629451]
[1735561037622,0.26288994,701.08,698.73,2.15569553]
[1735561037623,0.28528228,701.06,699.59,1.06629451]
[1735561037822,0.26288994,701.05,699.59,1.06629451]
[1735561038419,0.28528228,701.06,699.59,1.06629451]
[1735561038618,0.26285589,701.05,699.63,1.06629451]
[1735561039021,0.26285308,701.04,699.63,1.06629451]
[1735561039220,0.26285308,701.03,699.63,1.06629451]
[1735561039424,0.26285308,701.02,699.63,1.06629451]
[1735561039616,0.26285308,701.01,699.63,1.06629451]
[1735561039820,0.26285308,701.0,699.6,1.06629451]
[1735561040016,0.26285308,700.99,699.6,1.06629451]
[1735561040217,0.26285308,700.98,699.6,1.06629451]
[1735561040421,0.26285308,700.97,699.6,1.06629451]
[1735561040622,0.26285308,700.96,699.6,1.06629451]
[1735561040815,0.26285308,700.96,698.79,2.15569553]
[1735561040816,0.26285308,700.95,699.56,1.06629451]
[1735561041019,0.26285308,700.94,699.56,1.06629451]
[1735561041216,0.26285988,700.93,699.56,1.06629451]
[1735561041421,0.26285988,700.92,699.56,1.06629451]
[1735561041618,0.28528228,701.06,699.55,1.06629451]
[1735561041619,0.26285988,700.91,699.55,1.06629451]
[1735561041817,0.26285988,700.9,699.55,1.06629451]
[1735561042017,0.26285988,700.89,699.55,1.06629451]
[1735561042217,0.26285988,700.88,699.55,1.06629451]
[1735561042416,0.26285988,700.87,699.55,1.06629451]
[1735561042621,0.26285988,700.86,699.55,1.06629451]
[1735561042817,0.26285988,700.85,699.58,1.06629451]
[1735561043022,0.26285988,700.84,699.58,1.06629451]
[1735561043217,0.26285988,700.83,699.58,1.06629451]
[1735561043422,0.26285988,700.82,699.58,1.06629451]
[1735561043624,0.26285988,700.81,699.58,1.06629451]
[1735561043824,0.26285866,700.8,699.57,1.06629451]
[1735561044018,0.26285866,700.79,699.57,1.06629451]
[1735561044218,0.28528228,701.06,699.57,1.06629451]
[1735561044420,0.26284041,701.05,699.57,1.06629451]
[1735561044625,0.26284041,701.05,699.6,1.06629451]
[1735561045522,0.26284041,701.05,699.61,1.06629451]
[1735561046321,0.28528228,701.06,699.61,1.06629451]
[1735561046526,0.26280966,701.05,699.61,1.06629451]
[1735561046728,0.26280966,701.05,699.66,1.06629451]
[1735561047125,0.26279137,701.04,699.66,1.06629451]
[1735561047326,0.26279137,701.03,699.66,1.06629451]
[1735561047524,0.26279137,701.02,699.66,1.06629451]
[1735561047722,0.26279137,701.01,699.74,1.06629451]
[1735561047922,0.26279137,701.0,699.74,1.06629451]
[1735561048129,0.26279137,700.99,699.74,1.06629451]
[1735561048429,0.26279137,700.98,699.74,1.06629451]
[1735561048631,0.28528228,701.06,699.71,1.06629451]
[1735561048632,0.26279137,700.97,699.71,1.06629451]
[1735561048928,0.26279137,700.96,699.71,1.06629451]
[1735561049127,0.28528228,701.06,699.71,1.06629451]
[1735561049128,0.26279137,700.95,699.71,1.06629451]
[1735561049328,0.26279137,700.94,699.71,1.06629451]
[1735561049526,0.26279137,700.94,698.97,2.15569553]
[1735561049527,0.26279137,700.93,699.69,1.06629451]
[1735561049725,0.26279137,700.92,699.69,1.06629451]
[1735561049926,0.26279137,700.91,699.69,1.06629451]
[1735561050126,0.26279137,700.9,699.69,1.06629451]
[1735561050333,0.26279137,700.89,699.72,1.06629451]
[1735561050531,0.26279137,700.88,699.72,1.06629451]
[1735561050734,0.26279137,700.87,699.72,1.06629451]
[1735561050928,0.26279137,700.86,699.72,1.06629451]
[1735561051128,0.28528228,701.06,699.72,1.06629451]
[1735561051332,0.26279116,701.05,699.72,1.06629451]
[1735561051730,0.26278731,701.04,699.72,1.06629451]
[1735561051933,0.26278731,701.05,699.72,1.06629451]
[1735561052334,0.26278731,701.03,699.72,1.06629451]
[1735561052734,0.26278731,701.05,699.72,1.06629451]
[1735561052931,0.28528228,701.06,699.72,1.06629451]
[1735561052932,0.26275743,701.04,699.72,1.06629451]
[1735561053132,0.28528228,701.06,699.72,1.06629451]
[1735561053334,0.28528228,701.06,699.71,1.06629451]
[1735561053530,0.26275343,701.05,699.71,1.06629451]
[1735561053733,0.28528228,701.06,699.71,1.06629451]
[1735561054130,0.28528228,701.06,699.75,1.06629451]
[1735561054836,0.28528228,701.06,699.55,1.06629451]
[1735561055737,0.28528228,701.06,698.46,2.15569553]
[1735561055738,0.28528228,701.06,699.47,1.06629451]
[1735561056832,0.28528228,701.06,698.37,2.15569553]
[1735561056833,0.28528228,701.06,699.51,1.06629451]
[1735561057840,0.28528228,701.06,699.57,1.06629451]
[1735561059241,0.28528228,701.06,699.61,1.06629451]
[1735561060135,0.28528228,701.06,699.63,1.06629451]
[1735561060940,0.28528228,701.06,699.67,1.06629451]
[1735561061134,0.2627629,701.05,699.67,1.06629451]
[1735561061735,0.28529449,701.03,699.75,1.06629451]
[1735561062746,0.28529449,701.03,699.74,1.06629451]
[1735561063643,0.28529449,701.03,699.75,1.06629451]
[1735561064443,0.26275813,701.02,699.75,1.06629451]
[1735561064843,0.26275785,701.01,699.75,1.06629451]
[1735561065040,0.26275785,701.0,699.79,1.06629451]
[1735561065243,0.28529449,701.03,699.79,1.06629451]
[1735561065443,0.26275971,701.02,699.79,1.06629451]
[1735561065845,0.28529449,701.03,699.79,1.06629451]
[1735561066143,0.28529449,701.03,699.81,1.06629451]
[1735561067339,0.28529449,701.03,699.87,1.06629451]
[1735561067645,0.26273737,701.02,699.87,1.06629451]
[1735561068043,0.28529449,701.03,699.87,1.06629451]
[1735561068445,0.28529449,701.03,699.85,1.06629451]
[1735561068642,0.26274999,701.02,699.85,1.06629451]
[1735561069139,0.28529449,701.03,699.86,1.06629451]
[1735561070346,0.28529449,701.03,699.9,1.06629451]
[1735561070738,0.2627525,701.02,699.9,1.06629451]
[1735561072049,0.2627525,701.02,699.88,1.06629451]
[1735561072646,0.2627525,701.02,699.12,2.15569553]
[1735561072647,0.2627525,701.02,699.93,1.06629451]
[1735561073547,0.2627525,701.02,699.97,1.06629451]
[1735561074547,0.2627525,701.02,699.98,1.06629451]
[1735561075247,0.26278876,701.01,699.98,1.06629451]
[1735561075449,0.26278876,701.0,699.98,1.06629451]
[1735561075647,0.26278876,700.99,699.98,1.06629451]
[1735561075843,0.26278876,700.98,699.98,1.06629451]
[1735561076046,0.26278876,700.97,699.98,1.06629451]
[1735561076246,0.26278876,700.96,699.98,1.06629451]
[1735561076447,0.26278876,700.95,699.98,1.06629451]
[1735561076647,0.26279987,700.94,699.97,1.06629451]
[1735561076847,0.26279987,700.93,699.97,1.06629451]
[1735561077047,0.26279987,700.92,699.97,1.06629451]
[1735561077248,0.26279987,700.91,699.97,1.06629451]
[1735561077448,0.26279987,700.9,699.97,1.06629451]
[1735561077653,0.26279987,700.9,699.44,2.15569553]
[1735561077654,0.26279987,700.89,699.98,1.06629451]
[1735561077953,0.26279927,700.88,699.98,1.06629451]
[1735561078145,0.26279927,700.87,699.98,1.06629451]
[1735561078452,0.26279927,700.86,699.98,1.06629451]
[1735561078652,0.26279927,700.85,699.99,1.06629451]
[1735561078847,0.26279927,700.84,699.99,1.06629451]
[1735561079152,0.28537998,700.82,699.99,1.06629451]
[1735561079352,0.28537998,700.82,700.01,1.06629451]
[1735561079353,0.26280051,700.81,700.01,1.06629451]
[1735561080449,0.26280051,700.81,699.95,1.06629451]
[1735561080651,0.26279477,700.8,699.95,1.06629451]
[1735561080951,0.26279477,700.79,699.95,1.06629451]
[1735561081151,0.28537998,700.82,699.95,1.06629451]
[1735561081353,0.28537998,700.82,699.35,2.15569553]
[1735561081354,0.26278804,700.81,699.99,1.06629451]
[1735561081547,0.28537998,700.82,699.99,1.06629451]
[1735561081748,0.26279567,700.81,699.99,1.06629451]
[1735561082554,0.26279567,700.81,700.01,1.06629451]
[1735561083552,0.26279567,700.81,699.8,1.05585087]
[1735561083553,0.26279567,700.81,700.0,1.06629451]
[1735561084956,0.28537998,700.82,700.0,1.06629451]
[1735561085154,0.26279535,700.81,700.0,1.06629451]
[1735561086550,0.26279535,700.81,700.01,1.06629451]
[1735561087451,0.26279535,700.81,699.99,1.06629451]
[1735561089360,0.26279535,700.81,699.98,1.06629451]
[1735561090358,0.26279997,700.8,700.0,1.06629451]
[1735561090558,0.26279997,700.79,700.0,1.06629451]
[1735561090859,0.26279997,700.78,700.0,1.06629451]
[1735561091062,0.26279997,700.77,700.0,1.06629451]
[1735561091359,0.26279997,700.76,700.0,1.06629451]
[1735561091554,0.28537998,700.82,699.99,1.06629451]
[1735561091958,0.26281517,700.81,699.99,1.06629451]
[1735561092360,0.26281517,700.81,699.91,1.06629451]
[1735561092560,0.28537998,700.82,699.91,1.06629451]
[1735561093057,0.26280857,700.81,699.91,1.06629451]
[1735561093258,0.2853922,700.79,699.91,1.06629451]
[1735561093658,0.2853922,700.79,699.89,1.06629451]
[1735561093856,0.2628386,700.78,699.89,1.06629451]
[1735561094060,0.2853922,700.79,699.89,1.06629451]
[1735561094464,0.26283569,700.78,699.79,1.06629451]
[1735561094964,0.2853922,700.79,699.79,1.06629451]
[1735561095164,0.2853922,700.79,699.77,1.06629451]
[1735561096166,0.2853922,700.79,699.51,1.05585087]
[1735561096167,0.26283703,700.78,699.78,1.06629451]
[1735561096759,0.28540441,700.76,699.78,1.06629451]
[1735561096963,0.26283703,700.75,699.78,1.06629451]
[1735561097466,0.28541663,700.73,699.78,1.06629451]
[1735561097668,0.26283703,700.72,699.78,1.06629451]
[1735561098167,0.26286316,700.71,699.78,1.06629451]
[1735561098362,0.26286316,700.7,699.74,1.06629451]
[1735561098564,0.26286316,700.69,699.74,1.06629451]
[1735561098765,0.26286316,700.68,699.74,1.06629451]